[Event "Late-Titled-Tuesday-Blitz-May-28-2024"]
[Site "Chess.com"]
[Date "2024.05.28"]
[Round "1"]
[White "GlavkonVVS"]
[Black "KebabJangles"]
[Result "0-1"]
[WhiteElo "2573"]
[BlackElo "2280"]
[TimeControl "180+1"]
[EndTime "14:07:42 PDT"]
[Termination "KebabJangles won by resignation"]

1. c4 {[%clk 0:03:00]} 1... Nf6 {[%clk 0:02:59.5]} 2. Nc3 {[%clk 0:02:59.3]}
2... g6 {[%clk 0:02:59.4]} 3. d4 {[%clk 0:02:59]} 3... Bg7 {[%clk 0:02:59.1]} 4.
Nf3 {[%clk 0:02:59.5]} 4... d6 {[%clk 0:02:58]} 5. Bg5 {[%clk 0:02:59.8]} 5...
h6 {[%clk 0:02:55.6]} 6. Bh4 {[%clk 0:02:59.5]} 6... O-O {[%clk 0:02:54.7]} 7.
e3 {[%clk 0:02:59.2]} 7... c5 {[%clk 0:02:44.2]} 8. d5 {[%clk 0:02:56.4]} 8...
g5 {[%clk 0:02:39.7]} 9. Bg3 {[%clk 0:02:56.2]} 9... Bf5 {[%clk 0:02:37]} 10.
Bd3 {[%clk 0:02:52.6]} 10... Bxd3 {[%clk 0:02:32.7]} 11. Qxd3 {[%clk 0:02:51.9]}
11... Nh5 {[%clk 0:02:33.3]} 12. O-O {[%clk 0:02:26]} 12... Nd7 {[%clk
0:02:29.8]} 13. Qf5 {[%clk 0:02:14.2]} 13... Nxg3 {[%clk 0:02:26.8]} 14. fxg3
{[%clk 0:02:11.9]} 14... Nf6 {[%clk 0:02:26.5]} 15. Rf2 {[%clk 0:01:57.7]} 15...
Qd7 {[%clk 0:02:24.9]} 16. Qxd7 {[%clk 0:01:53.3]} 16... Nxd7 {[%clk 0:02:25.8]}
17. Raf1 {[%clk 0:01:50.6]} 17... Ne5 {[%clk 0:02:25.7]} 18. Nxe5 {[%clk
0:01:50.4]} 18... Bxe5 {[%clk 0:02:26.6]} 19. Nd1 {[%clk 0:01:48.5]} 19... a6
{[%clk 0:02:25.3]} 20. g4 {[%clk 0:01:35.3]} 20... b5 {[%clk 0:02:23.6]} 21. Rc2
{[%clk 0:01:33.5]} 21... Rae8 {[%clk 0:02:18.5]} 22. Nf2 {[%clk 0:01:27.3]}
22... Rb8 {[%clk 0:02:15.9]} 23. b3 {[%clk 0:01:23.4]} 23... b4 {[%clk
0:02:13.6]} 24. Nd3 {[%clk 0:01:22.9]} 24... Bc3 {[%clk 0:02:12.1]} 25. g3
{[%clk 0:01:12.2]} 25... a5 {[%clk 0:02:10.5]} 26. a4 {[%clk 0:01:08.6]} 26...
e6 {[%clk 0:02:06.1]} 27. e4 {[%clk 0:01:03.9]} 27... Bd4+ {[%clk 0:02:04]} 28.
Kg2 {[%clk 0:01:03]} 28... Rbe8 {[%clk 0:02:04]} 29. Re1 {[%clk 0:00:55]} 29...
Bc3 {[%clk 0:01:54.3]} 30. Ree2 {[%clk 0:00:54.4]} 30... Re7 {[%clk 0:01:54.4]}
31. e5 {[%clk 0:00:43.6]} 31... dxe5 {[%clk 0:01:52]} 32. dxe6 {[%clk
0:00:40.5]} 32... Bd4 {[%clk 0:01:45.9]} 33. exf7+ {[%clk 0:00:38.3]} 33...
Rfxf7 {[%clk 0:01:46.3]} 34. Re4 {[%clk 0:00:35.8]} 34... Re6 {[%clk 0:01:45]}
35. Rce2 {[%clk 0:00:35.5]} 35... Rfe7 {[%clk 0:01:45.2]} 36. Ne1 {[%clk
0:00:33.6]} 36... Bc3 {[%clk 0:01:43.1]} 37. Nf3 {[%clk 0:00:33.1]} 37... Kg7
{[%clk 0:01:42.2]} 38. h4 {[%clk 0:00:32.7]} 38... Kf6 {[%clk 0:01:41.3]} 39.
Rf2 {[%clk 0:00:27.3]} 39... Kg6 {[%clk 0:01:38.7]} 40. Kf1 {[%clk 0:00:19.4]}
40... Rd6 {[%clk 0:01:36]} 41. Rfe2 {[%clk 0:00:18.1]} 41... Rde6 {[%clk
0:01:34]} 42. Kg2 {[%clk 0:00:18.1]} 42... Re8 {[%clk 0:01:33.3]} 43. Ng1 {[%clk
0:00:18]} 43... Rd6 {[%clk 0:01:31.6]} 44. Nh3 {[%clk 0:00:17.6]} 44... Rd4
{[%clk 0:01:31]} 45. h5+ {[%clk 0:00:15.7]} 45... Kg7 {[%clk 0:01:28.5]} 46. Ng1
{[%clk 0:00:16.1]} 46... Rd7 {[%clk 0:01:16.6]} 47. Nf3 {[%clk 0:00:15.7]} 47...
Rde7 {[%clk 0:01:15.9]} 48. Kf2 {[%clk 0:00:15]} 48... Rf8 {[%clk 0:01:14.8]}
49. Ke3 {[%clk 0:00:15.1]} 49... Rfe8 {[%clk 0:01:14.5]} 50. Kd3 {[%clk
0:00:15.1]} 50... Rd8+ {[%clk 0:01:14.1]} 51. Kc2 {[%clk 0:00:15.5]} 51... Rde8
{[%clk 0:01:14.3]} 52. Ng1 {[%clk 0:00:14.1]} 52... Rf7 {[%clk 0:01:14.4]} 53.
R4e3 {[%clk 0:00:12.9]} 53... Bd4 {[%clk 0:01:14.1]} 54. Nf3 {[%clk 0:00:09.6]}
54... Bxe3 {[%clk 0:01:13.7]} 55. Rxe3 {[%clk 0:00:10.2]} 55... e4 {[%clk
0:01:14.2]} 56. Nd2 {[%clk 0:00:10.4]} 56... Rf2 {[%clk 0:01:14]} 57. Kd1 {[%clk
0:00:09.8]} 57... Rd8 {[%clk 0:01:13.8]} 58. Ke1 {[%clk 0:00:09.3]} 58... Rfxd2
{[%clk 0:01:13.7]} 59. Rxe4 {[%clk 0:00:09.4]} 59... R2d7 {[%clk 0:01:12.9]} 60.
Re6 {[%clk 0:00:08.5]} 60... Rf8 {[%clk 0:01:10.4]} 61. Ke2 {[%clk 0:00:07.7]}
61... Rff7 {[%clk 0:01:10.3]} 62. Rg6+ {[%clk 0:00:08.2]} 62... Kh7 {[%clk
0:01:10.3]} 63. Rc6 {[%clk 0:00:08.7]} 63... Rfe7+ {[%clk 0:01:10.3]} 64. Kf2
{[%clk 0:00:09.1]} 64... Rd2+ {[%clk 0:01:10.3]} 65. Kf1 {[%clk 0:00:09.4]}
65... Rd3 {[%clk 0:01:09.5]} 66. Rxc5 {[%clk 0:00:09.3]} 66... Rxb3 {[%clk
0:01:09.8]} 67. Rxa5 {[%clk 0:00:09.2]} 67... Rxg3 {[%clk 0:01:09.9]} 68. Rb5
{[%clk 0:00:09]} 68... Rxg4 {[%clk 0:01:10.4]} 69. c5 {[%clk 0:00:07.8]} 69...
Rc4 {[%clk 0:01:10]} 70. a5 {[%clk 0:00:07.5]} 70... Ra7 {[%clk 0:01:09]} 71.
Ke2 {[%clk 0:00:05.4]} 71... Rc3 {[%clk 0:01:07.6]} 72. Kd2 {[%clk 0:00:04.6]}
72... g4 {[%clk 0:01:06.4]} 73. Rxb4 {[%clk 0:00:04.6]} 73... Rxc5 {[%clk
0:01:06.1]} 74. Rxg4 {[%clk 0:00:04.6]} 74... Raxa5 {[%clk 0:01:06.2]} 0-1

[Event "Late-Titled-Tuesday-Blitz-May-28-2024"]
[Site "Chess.com"]
[Date "2024.05.28"]
[Round "1"]
[White "artin10862"]
[Black "cristianserban1"]
[Result "1-0"]
[WhiteElo "3028"]
[BlackElo "2523"]
[TimeControl "180+1"]
[EndTime "14:07:43 PDT"]
[Termination "artin10862 won on time"]

1. c4 {[%clk 0:03:00]} 1... Nf6 {[%clk 0:03:00]} 2. Nc3 {[%clk 0:02:58.1]} 2...
e5 {[%clk 0:03:00]} 3. Nf3 {[%clk 0:02:49.2]} 3... Nc6 {[%clk 0:02:59.7]} 4. e3
{[%clk 0:02:46.2]} 4... Bb4 {[%clk 0:02:58.2]} 5. Qc2 {[%clk 0:02:42.8]} 5...
Bxc3 {[%clk 0:02:58.5]} 6. Qxc3 {[%clk 0:02:42.6]} 6... Qe7 {[%clk 0:02:58.9]}
7. a3 {[%clk 0:02:42.3]} 7... O-O {[%clk 0:02:53.7]} 8. b4 {[%clk 0:02:36.9]}
8... d5 {[%clk 0:02:18.7]} 9. cxd5 {[%clk 0:02:28.3]} 9... Nxd5 {[%clk
0:02:18.7]} 10. Qb3 {[%clk 0:02:26.9]} 10... Nb6 {[%clk 0:02:06.3]} 11. d3
{[%clk 0:02:25.7]} 11... Be6 {[%clk 0:02:03.7]} 12. Qc2 {[%clk 0:02:25.3]} 12...
f6 {[%clk 0:02:01.8]} 13. Be2 {[%clk 0:02:24.2]} 13... Rfd8 {[%clk 0:01:59.7]}
14. O-O {[%clk 0:02:23.5]} 14... a6 {[%clk 0:01:59.4]} 15. Bb2 {[%clk
0:02:17.9]} 15... Rac8 {[%clk 0:01:58.1]} 16. Rac1 {[%clk 0:02:16.8]} 16... Qf7
{[%clk 0:01:57]} 17. Nd2 {[%clk 0:02:14.5]} 17... Ne7 {[%clk 0:01:51.3]} 18. Ne4
{[%clk 0:02:09.7]} 18... Bb3 {[%clk 0:01:42]} 19. Qb1 {[%clk 0:02:09.1]} 19...
Na4 {[%clk 0:01:40.5]} 20. Ba1 {[%clk 0:01:19.4]} 20... Ba2 {[%clk 0:01:40.1]}
21. Qc2 {[%clk 0:01:19.3]} 21... Bb3 {[%clk 0:01:40.5]} 22. Qd2 {[%clk
0:01:19.5]} 22... Nd5 {[%clk 0:01:40.1]} 23. Bf3 {[%clk 0:01:14.4]} 23... Ndb6
{[%clk 0:01:37.7]} 24. Qe2 {[%clk 0:01:12.7]} 24... Bd5 {[%clk 0:01:23.2]} 25.
Rc2 {[%clk 0:01:11.6]} 25... Bb3 {[%clk 0:01:13.6]} 26. Rd2 {[%clk 0:01:11.2]}
26... Bd5 {[%clk 0:01:09.6]} 27. Rc1 {[%clk 0:01:10.4]} 27... c6 {[%clk
0:00:50.9]} 28. Qd1 {[%clk 0:00:47.4]} 28... Ra8 {[%clk 0:00:46.5]} 29. d4
{[%clk 0:00:37.1]} 29... Bb3 {[%clk 0:00:31]} 30. Qe1 {[%clk 0:00:27.6]} 30...
exd4 {[%clk 0:00:20.4]} 31. Bxd4 {[%clk 0:00:25.8]} 31... Nc4 {[%clk 0:00:17.3]}
32. Rd3 {[%clk 0:00:25]} 32... Ne5 {[%clk 0:00:17.6]} 33. Rd2 {[%clk 0:00:18.9]}
33... Nxf3+ {[%clk 0:00:17.7]} 34. gxf3 {[%clk 0:00:18.9]} 34... Bd5 {[%clk
0:00:18.6]} 35. Qe2 {[%clk 0:00:14.4]} 35... Qg6+ {[%clk 0:00:12.5]} 36. Ng3
{[%clk 0:00:13.5]} 36... h5 {[%clk 0:00:12.6]} 37. h4 {[%clk 0:00:13.3]} 37...
Re8 {[%clk 0:00:04.8]} 38. Kh2 {[%clk 0:00:10.1]} 38... Qf7 {[%clk 0:00:01]} 39.
f4 {[%clk 0:00:09]} 39... Rad8 {[%clk 0:00:01.8]} 40. f5 {[%clk 0:00:09]} 40...
Re7 {[%clk 0:00:01.4]} 41. Nxh5 {[%clk 0:00:08.3]} 41... Be4 {[%clk 0:00:01.1]}
42. Ng3 {[%clk 0:00:08.3]} 1-0

[Event "Late-Titled-Tuesday-Blitz-May-28-2024"]
[Site "Chess.com"]
[Date "2024.05.28"]
[Round "1"]
[White "Charodej1"]
[Black "cassoulet"]
[Result "1-0"]
[WhiteElo "2443"]
[BlackElo "2734"]
[TimeControl "180+1"]
[EndTime "14:07:44 PDT"]
[Termination "Charodej1 won by checkmate"]

1. Nf3 {[%clk 0:02:20.1]} 1... Nf6 {[%clk 0:02:58.4]} 2. g3 {[%clk 0:02:19.4]}
2... g6 {[%clk 0:02:57.8]} 3. Bg2 {[%clk 0:02:19.9]} 3... Bg7 {[%clk 0:02:58.5]}
4. O-O {[%clk 0:02:20.1]} 4... O-O {[%clk 0:02:59.2]} 5. d4 {[%clk 0:02:20.5]}
5... d5 {[%clk 0:02:59.8]} 6. c4 {[%clk 0:02:20.4]} 6... dxc4 {[%clk 0:03:00.7]}
7. Ne5 {[%clk 0:02:17.1]} 7... Nfd7 {[%clk 0:02:58.8]} 8. Nxc4 {[%clk
0:02:16.5]} 8... Nb6 {[%clk 0:02:59.1]} 9. Ne5 {[%clk 0:02:05.8]} 9... N8d7
{[%clk 0:02:54.4]} 10. Nf3 {[%clk 0:02:01.3]} 10... c5 {[%clk 0:02:49.3]} 11.
Nc3 {[%clk 0:01:55.4]} 11... cxd4 {[%clk 0:02:48]} 12. Nxd4 {[%clk 0:01:55.2]}
12... Nc5 {[%clk 0:02:45.2]} 13. Ndb5 {[%clk 0:01:54.8]} 13... a6 {[%clk
0:02:36.8]} 14. Be3 {[%clk 0:01:50.2]} 14... Ncd7 {[%clk 0:02:27.4]} 15. Na3
{[%clk 0:01:42.2]} 15... e6 {[%clk 0:02:11.6]} 16. Qb3 {[%clk 0:01:36.7]} 16...
Nd5 {[%clk 0:01:53.5]} 17. Nxd5 {[%clk 0:01:34.2]} 17... exd5 {[%clk 0:01:53.6]}
18. Bxd5 {[%clk 0:01:31.8]} 18... Nf6 {[%clk 0:01:52.8]} 19. Bg2 {[%clk
0:01:29.2]} 19... Be6 {[%clk 0:01:52.7]} 20. Qxb7 {[%clk 0:01:11.7]} 20... Bd5
{[%clk 0:01:47.8]} 21. Qb4 {[%clk 0:00:47.6]} 21... Bxg2 {[%clk 0:01:45.2]} 22.
Kxg2 {[%clk 0:00:47.3]} 22... Nd5 {[%clk 0:01:45.4]} 23. Qd2 {[%clk 0:00:38.8]}
23... Nxe3+ {[%clk 0:01:44.6]} 24. Qxe3 {[%clk 0:00:39.1]} 24... Re8 {[%clk
0:01:37.3]} 25. Qf3 {[%clk 0:00:33.1]} 25... Bxb2 {[%clk 0:01:33.5]} 26. Rad1
{[%clk 0:00:30.7]} 26... Qe7 {[%clk 0:01:33]} 27. Nc4 {[%clk 0:00:28.1]} 27...
Qxe2 {[%clk 0:01:30.5]} 28. Qxe2 {[%clk 0:00:19]} 28... Rxe2 {[%clk 0:01:31.4]}
29. Kf3 {[%clk 0:00:19.2]} 29... Rc2 {[%clk 0:01:30.6]} 30. Ne3 {[%clk 0:00:19]}
30... Rc6 {[%clk 0:01:26.1]} 31. Rd7 {[%clk 0:00:18.3]} 31... Re8 {[%clk
0:01:21.7]} 32. Rb1 {[%clk 0:00:17.7]} 32... Be5 {[%clk 0:01:20]} 33. Rbb7
{[%clk 0:00:17.3]} 33... Rf6+ {[%clk 0:01:18.6]} 34. Kg2 {[%clk 0:00:17.2]}
34... h5 {[%clk 0:01:10.4]} 35. Nd5 {[%clk 0:00:17.2]} 35... Rd6 {[%clk
0:01:08.1]} 36. Rxd6 {[%clk 0:00:16.8]} 36... Bxd6 {[%clk 0:01:09]} 37. Nf6+
{[%clk 0:00:15.2]} 37... Kf8 {[%clk 0:01:09.3]} 38. Nxe8 {[%clk 0:00:16.1]}
38... Kxe8 {[%clk 0:01:10.2]} 39. a4 {[%clk 0:00:16.1]} 39... a5 {[%clk
0:01:10]} 40. Kf3 {[%clk 0:00:16.1]} 40... Bc5 {[%clk 0:01:06.5]} 41. Rb5 {[%clk
0:00:16.2]} 41... Bb4 {[%clk 0:01:07]} 42. Ke2 {[%clk 0:00:15.6]} 42... Kd7
{[%clk 0:01:07.3]} 43. f3 {[%clk 0:00:15.3]} 43... Kc6 {[%clk 0:01:07.5]} 44.
Kd3 {[%clk 0:00:15.6]} 44... Be1 {[%clk 0:01:06.1]} 45. Ke2 {[%clk 0:00:14.1]}
45... Bb4 {[%clk 0:01:05.7]} 46. g4 {[%clk 0:00:14.4]} 46... h4 {[%clk
0:01:04.8]} 47. h3 {[%clk 0:00:14.5]} 47... Kd6 {[%clk 0:01:03.3]} 48. Kd3
{[%clk 0:00:14.3]} 48... Ke6 {[%clk 0:01:03.1]} 49. Rxb4 {[%clk 0:00:14.2]}
49... axb4 {[%clk 0:01:03.1]} 50. Kc4 {[%clk 0:00:15]} 50... f5 {[%clk
0:01:01.1]} 51. Kxb4 {[%clk 0:00:14.7]} 51... Ke5 {[%clk 0:00:56.8]} 52. a5
{[%clk 0:00:14.6]} 52... Kf4 {[%clk 0:00:54.2]} 53. a6 {[%clk 0:00:14.8]} 53...
Kxf3 {[%clk 0:00:54.7]} 54. gxf5 {[%clk 0:00:14.7]} 54... gxf5 {[%clk
0:00:54.2]} 55. a7 {[%clk 0:00:15.6]} 55... Kg3 {[%clk 0:00:54.8]} 56. a8=Q
{[%clk 0:00:15.9]} 56... Kxh3 {[%clk 0:00:55.4]} 57. Qh1+ {[%clk 0:00:16.3]}
57... Kg4 {[%clk 0:00:55.5]} 58. Kc3 {[%clk 0:00:17.1]} 58... f4 {[%clk
0:00:55]} 59. Kd3 {[%clk 0:00:17.2]} 59... h3 {[%clk 0:00:55.6]} 60. Ke2 {[%clk
0:00:16.3]} 60... Kg3 {[%clk 0:00:55.6]} 61. Qg1+ {[%clk 0:00:15.6]} 61... Kh4
{[%clk 0:00:55.5]} 62. Kf2 {[%clk 0:00:14.9]} 62... h2 {[%clk 0:00:54.3]} 63.
Qxh2+ {[%clk 0:00:14.9]} 63... Kg4 {[%clk 0:00:55.2]} 64. Qg2+ {[%clk
0:00:15.3]} 64... Kh4 {[%clk 0:00:55.5]} 65. Qf3 {[%clk 0:00:15.3]} 65... Kg5
{[%clk 0:00:54.6]} 66. Ke2 {[%clk 0:00:15.9]} 66... Kh4 {[%clk 0:00:55.5]} 67.
Kd3 {[%clk 0:00:16.4]} 67... Kg5 {[%clk 0:00:55.3]} 68. Ke4 {[%clk 0:00:16.8]}
68... Kh4 {[%clk 0:00:55.9]} 69. Qxf4+ {[%clk 0:00:17.2]} 69... Kh3 {[%clk
0:00:56.3]} 70. Qg5 {[%clk 0:00:17.3]} 70... Kh2 {[%clk 0:00:56.5]} 71. Kf3
{[%clk 0:00:17.4]} 71... Kh3 {[%clk 0:00:57.4]} 72. Qh5# {[%clk 0:00:17]} 1-0

[Event "Late-Titled-Tuesday-Blitz-May-28-2024"]
[Site "Chess.com"]
[Date "2024.05.28"]
[Round "1"]
[White "MKlose11"]
[Black "norwaytoadog"]
[Result "1-0"]
[WhiteElo "2604"]
[BlackElo "2299"]
[TimeControl "180+1"]
[EndTime "14:07:44 PDT"]
[Termination "MKlose11 won on time"]

1. e4 {[%clk 0:02:57.9]} 1... c5 {[%clk 0:02:57.2]} 2. Nc3 {[%clk 0:02:55]} 2...
Nc6 {[%clk 0:02:57]} 3. g3 {[%clk 0:02:55.9]} 3... g6 {[%clk 0:02:56.2]} 4. Bg2
{[%clk 0:02:56.8]} 4... Bg7 {[%clk 0:02:56.7]} 5. d3 {[%clk 0:02:57.2]} 5... d6
{[%clk 0:02:54.9]} 6. Be3 {[%clk 0:02:56]} 6... Rb8 {[%clk 0:02:55.5]} 7. Qd2
{[%clk 0:02:56.2]} 7... b5 {[%clk 0:02:55.7]} 8. Nge2 {[%clk 0:02:54.1]} 8... b4
{[%clk 0:02:55.2]} 9. Nd1 {[%clk 0:02:54.3]} 9... Nd4 {[%clk 0:02:45.2]} 10. O-O
{[%clk 0:02:53.3]} 10... e6 {[%clk 0:02:43.3]} 11. Nc1 {[%clk 0:02:52.4]} 11...
Ne7 {[%clk 0:02:37.9]} 12. f4 {[%clk 0:02:49]} 12... f5 {[%clk 0:02:34.7]} 13.
c3 {[%clk 0:02:49.2]} 13... bxc3 {[%clk 0:02:25.3]} 14. bxc3 {[%clk 0:02:48.7]}
14... Ndc6 {[%clk 0:02:22.9]} 15. exf5 {[%clk 0:02:48.6]} 15... exf5 {[%clk
0:02:07.3]} 16. Ne2 {[%clk 0:02:48.6]} 16... O-O {[%clk 0:01:59]} 17. d4 {[%clk
0:02:45.9]} 17... Ba6 {[%clk 0:01:48.3]} 18. dxc5 {[%clk 0:02:41.7]} 18... dxc5
{[%clk 0:01:44.2]} 19. Qxd8 {[%clk 0:02:40.2]} 19... Rfxd8 {[%clk 0:01:44.2]}
20. Re1 {[%clk 0:02:37.9]} 20... Nd5 {[%clk 0:01:33.1]} 21. Bxc5 {[%clk
0:02:35.5]} 21... Bxe2 {[%clk 0:01:24.7]} 22. Rxe2 {[%clk 0:02:34.6]} 22... Nxc3
{[%clk 0:01:22]} 23. Nxc3 {[%clk 0:02:19]} 23... Bxc3 {[%clk 0:01:20.5]} 24. Rc1
{[%clk 0:02:12.5]} 24... Bd4+ {[%clk 0:01:02.5]} 25. Bxd4 {[%clk 0:02:07.1]}
25... Nxd4 {[%clk 0:01:02.4]} 26. Rf2 {[%clk 0:02:06.5]} 26... Rbc8 {[%clk
0:00:58]} 27. Rxc8 {[%clk 0:01:59.8]} 27... Rxc8 {[%clk 0:00:57.9]} 28. Bd5+
{[%clk 0:02:00.4]} 28... Kg7 {[%clk 0:00:57.7]} 29. Rd2 {[%clk 0:01:58.9]} 29...
Nc2 {[%clk 0:00:49.8]} 30. Bb3 {[%clk 0:01:55.6]} 30... Ne3 {[%clk 0:00:42.2]}
31. Rd7+ {[%clk 0:01:51.6]} 31... Kh6 {[%clk 0:00:42.2]} 32. Rxa7 {[%clk
0:01:51.4]} 32... Rc1+ {[%clk 0:00:40.4]} 33. Kf2 {[%clk 0:01:51]} 33... Ng4+
{[%clk 0:00:40.4]} 34. Kg2 {[%clk 0:01:50.7]} 34... Rb1 {[%clk 0:00:37.3]} 35.
h3 {[%clk 0:01:34.5]} 35... Rb2+ {[%clk 0:00:35.7]} 36. Kg1 {[%clk 0:01:34.9]}
36... Nf6 {[%clk 0:00:31.6]} 37. Be6 {[%clk 0:01:24.8]} 37... Nh5 {[%clk
0:00:29.4]} 38. a4 {[%clk 0:01:15.2]} 38... Nxg3 {[%clk 0:00:28.2]} 39. Bg8
{[%clk 0:01:15.4]} 39... g5 {[%clk 0:00:25.7]} 40. fxg5+ {[%clk 0:00:58.2]}
40... Kxg5 {[%clk 0:00:25.6]} 41. a5 {[%clk 0:00:57]} 41... f4 {[%clk 0:00:24]}
42. Bd5 {[%clk 0:00:55.8]} 42... Rb1+ {[%clk 0:00:19.1]} 43. Kf2 {[%clk
0:00:52.5]} 43... Rb2+ {[%clk 0:00:19.3]} 44. Ke1 {[%clk 0:00:51]} 44... Re2+
{[%clk 0:00:17.9]} 45. Kd1 {[%clk 0:00:49.9]} 45... Rh2 {[%clk 0:00:16.2]} 46.
a6 {[%clk 0:00:47.5]} 46... Ne2 {[%clk 0:00:14.7]} 47. Rg7+ {[%clk 0:00:32.2]}
47... Kf5 {[%clk 0:00:12.3]} 48. a7 {[%clk 0:00:29.1]} 48... Nc3+ {[%clk
0:00:11.7]} 49. Ke1 {[%clk 0:00:27.7]} 49... Rh1+ {[%clk 0:00:09.1]} 50. Kf2
{[%clk 0:00:25.9]} 50... Ra1 {[%clk 0:00:08.8]} 51. a8=Q {[%clk 0:00:25.2]}
51... Rxa8 {[%clk 0:00:08.2]} 52. Bxa8 {[%clk 0:00:26.1]} 1-0

[Event "Late-Titled-Tuesday-Blitz-May-28-2024"]
[Site "Chess.com"]
[Date "2024.05.28"]
[Round "1"]
[White "toninhojit"]
[Black "LiemLe"]
[Result "0-1"]
[WhiteElo "2526"]
[BlackElo "3041"]
[TimeControl "180+1"]
[EndTime "14:07:45 PDT"]
[Termination "LiemLe won by checkmate"]

1. d4 {[%clk 0:02:53.9]} 1... Nf6 {[%clk 0:02:59.9]} 2. c4 {[%clk 0:02:53.9]}
2... g6 {[%clk 0:03:00.6]} 3. Nc3 {[%clk 0:02:53.9]} 3... Bg7 {[%clk 0:03:01.3]}
4. e4 {[%clk 0:02:54.3]} 4... d6 {[%clk 0:03:01.6]} 5. Be2 {[%clk 0:02:54.9]}
5... O-O {[%clk 0:03:02.2]} 6. Bg5 {[%clk 0:02:55.4]} 6... c5 {[%clk 0:02:49.3]}
7. d5 {[%clk 0:02:55.6]} 7... h6 {[%clk 0:02:41.5]} 8. Be3 {[%clk 0:02:55.2]}
8... e6 {[%clk 0:02:41.4]} 9. Qd2 {[%clk 0:02:55.7]} 9... exd5 {[%clk
0:02:38.5]} 10. exd5 {[%clk 0:02:56.6]} 10... Kh7 {[%clk 0:02:34.1]} 11. h3
{[%clk 0:02:56.8]} 11... Bf5 {[%clk 0:02:28.9]} 12. Nf3 {[%clk 0:02:57]} 12...
Ne4 {[%clk 0:02:26.6]} 13. Nxe4 {[%clk 0:02:57.1]} 13... Bxe4 {[%clk 0:02:27.5]}
14. O-O {[%clk 0:02:57.4]} 14... Bxf3 {[%clk 0:02:20.6]} 15. Bxf3 {[%clk
0:02:56]} 15... Nd7 {[%clk 0:02:21.2]} 16. Rac1 {[%clk 0:02:44.9]} 16... Qh4
{[%clk 0:02:17.8]} 17. Be2 {[%clk 0:02:30.6]} 17... Rae8 {[%clk 0:02:16.9]} 18.
Kh2 {[%clk 0:02:27.1]} 18... Nf6 {[%clk 0:01:33.2]} 19. g3 {[%clk 0:02:25.2]}
19... Ne4 {[%clk 0:01:33.7]} 20. Qd3 {[%clk 0:02:14.4]} 20... Qf6 {[%clk
0:01:32.2]} 21. Rc2 {[%clk 0:02:00.6]} 21... h5 {[%clk 0:01:30.2]} 22. Kg2
{[%clk 0:01:50]} 22... h4 {[%clk 0:01:27.3]} 23. g4 {[%clk 0:01:50.5]} 23... Bh6
{[%clk 0:01:27.5]} 24. Bf3 {[%clk 0:01:45.3]} 24... Bxe3 {[%clk 0:01:23]} 25.
Bxe4 {[%clk 0:01:39.2]} 25... Bd4 {[%clk 0:01:21.6]} 26. Qf3 {[%clk 0:01:09]}
26... Qg5 {[%clk 0:00:58.4]} 27. Kh1 {[%clk 0:00:47.7]} 27... Re7 {[%clk
0:00:37.2]} 28. Re2 {[%clk 0:00:46.7]} 28... Rfe8 {[%clk 0:00:33.4]} 29. Rfe1
{[%clk 0:00:46]} 29... Kg7 {[%clk 0:00:33.9]} 30. Kg2 {[%clk 0:00:41.6]} 30...
a6 {[%clk 0:00:26.5]} 31. Bd3 {[%clk 0:00:37.7]} 31... Bxb2 {[%clk 0:00:26.5]}
32. Rxe7 {[%clk 0:00:32.1]} 32... Rxe7 {[%clk 0:00:27.4]} 33. Rxe7 {[%clk
0:00:32.3]} 33... Qxe7 {[%clk 0:00:28.3]} 34. Qe4 {[%clk 0:00:26.5]} 34... Qf6
{[%clk 0:00:27.4]} 35. Be2 {[%clk 0:00:18.3]} 35... Be5 {[%clk 0:00:25.5]} 36.
Qf3 {[%clk 0:00:14.2]} 36... Qg5 {[%clk 0:00:25.4]} 37. Qe3 {[%clk 0:00:13.3]}
37... Qf6 {[%clk 0:00:22.2]} 38. Qe4 {[%clk 0:00:12.9]} 38... Bf4 {[%clk
0:00:20.7]} 39. Bf3 {[%clk 0:00:11.2]} 39... Bg5 {[%clk 0:00:16.8]} 40. a4
{[%clk 0:00:10.7]} 40... Qb2 {[%clk 0:00:13.7]} 41. Qe2 {[%clk 0:00:09]} 41...
Qb3 {[%clk 0:00:12.5]} 42. Be4 {[%clk 0:00:06.2]} 42... Qxa4 {[%clk 0:00:11.1]}
43. Bd3 {[%clk 0:00:04.9]} 43... Qa1 {[%clk 0:00:09.4]} 44. Qe4 {[%clk
0:00:05.2]} 44... Qc3 {[%clk 0:00:08.8]} 45. f4 {[%clk 0:00:05.5]} 45... Bf6
{[%clk 0:00:08.1]} 46. g5 {[%clk 0:00:06]} 46... Bd4 {[%clk 0:00:08.2]} 47. f5
{[%clk 0:00:06.6]} 47... Qd2+ {[%clk 0:00:08.6]} 48. Kh1 {[%clk 0:00:06.2]}
48... Qc1+ {[%clk 0:00:08]} 49. Kg2 {[%clk 0:00:06.4]} 49... Qg1+ {[%clk
0:00:08.6]} 50. Kf3 {[%clk 0:00:06.9]} 50... Qf2+ {[%clk 0:00:07.6]} 51. Kg4
{[%clk 0:00:05.1]} 51... Qg3# {[%clk 0:00:08.5]} 0-1